bitfinex/quotes_BTCUSD_20251015
["timestamp","ask_amount","ask_price","bid_price","bid_amount"]
[1760546116434,1.07239523,110970.0,110960.0,0.00011894]
[1760546116833,1.05394402,110970.0,110960.0,0.00011894]
[1760546117054,0.18022889,110970.0,110960.0,0.00011894]
[1760546117277,0.598898,110970.0,110960.0,0.00011894]
[1760546117953,0.18946099,110980.0,110960.0,0.2880787]
[1760546118162,0.18022889,110970.0,110960.0,0.27005419]
[1760546119150,0.59888233,110980.0,110960.0,0.27005419]
[1760546119359,0.18022889,110970.0,110960.0,0.27005419]
[1760546119664,0.59888233,110980.0,110960.0,0.27005419]
[1760546120316,0.18022889,110970.0,110960.0,0.27005419]
[1760546121166,0.52920623,110990.0,110970.0,0.18022889]
[1760546121167,0.94787534,110990.0,110970.0,0.18022889]
[1760546121370,0.00014986,110990.0,110980.0,0.28792403]
[1760546121577,0.00014986,110990.0,110980.0,0.26990277]
[1760546121925,0.00014986,110990.0,110980.0,0.60990277]
[1760546122894,0.18034627,110990.0,110980.0,0.08969012]
[1760546123104,0.18021773,110980.0,110960.0,0.18937632]
[1760546123307,0.18022889,110970.0,110960.0,0.08980906]
[1760546123551,0.598898,110970.0,110960.0,0.08980906]
[1760546123742,0.598898,110970.0,110960.0,0.27005419]
[1760546123949,0.18022889,110970.0,110960.0,0.27005419]
[1760546124404,0.18022889,110970.0,110960.0,0.08980906]
[1760546124405,0.598898,110970.0,110960.0,0.08980906]
[1760546124622,0.598898,110970.0,110960.0,0.00011894]
[1760546125121,0.598898,110970.0,110960.0,0.00111894]
[1760546125352,1.01756711,110970.0,110960.0,0.00211894]
[1760546125550,0.91652604,110970.0,110960.0,0.00211894]
[1760546125753,0.91652604,110970.0,110960.0,0.00111894]
[1760546125970,0.91652604,110970.0,110960.0,0.00011894]
[1760546127017,0.91652604,110970.0,110960.0,0.01814345]
[1760546128601,0.92556856,110980.0,110960.0,0.19838858]
[1760546128863,0.5292769,110980.0,110970.0,0.18022889]
[1760546129074,0.52926633,110980.0,110970.0,0.18022889]
[1760546129298,0.52926633,110980.0,110960.0,0.27005419]
[1760546129743,0.52926633,110980.0,110970.0,0.18022889]
[1760546130605,0.52926633,110980.0,110960.0,0.27005419]
[1760546131303,0.18935609,110990.0,110970.0,0.18022889]
[1760546131518,0.18021265,110980.0,110970.0,0.19825177]
[1760546131757,0.18021265,110980.0,110960.0,0.27005419]
[1760546131965,0.18022889,110970.0,110960.0,0.27005419]
[1760546132386,0.18021265,110980.0,110960.0,0.27005419]
[1760546132596,0.18021265,110980.0,110970.0,0.18022889]
[1760546132807,0.18021265,110980.0,110970.0,0.19825177]
[1760546133018,0.18021265,110980.0,110970.0,0.18022889]
[1760546133455,0.52945751,110990.0,110980.0,0.18021265]
[1760546133885,0.52945751,110990.0,110970.0,0.18022889]
[1760546134100,0.52945751,110990.0,110980.0,0.19823391]
[1760546134101,0.18034627,110990.0,110980.0,0.19823391]
[1760546134359,9.708e-05,110990.0,110980.0,0.18021265]
[1760546134553,0.18029349,110990.0,110980.0,0.18021265]
[1760546135202,9.708e-05,110990.0,110980.0,0.18021265]
[1760546135402,9.708e-05,110990.0,110980.0,0.26990277]
[1760546138201,0.18029349,110990.0,110980.0,0.26990277]
[1760546138887,0.18029349,110990.0,110980.0,0.08969012]
[1760546139133,0.18021805,110980.0,110970.0,0.18022889]
[1760546139342,0.18021805,110980.0,110960.0,0.18036265]
[1760546139609,0.18021805,110980.0,110970.0,0.18022889]
[1760546140270,0.18029349,110990.0,110970.0,0.18022889]
[1760546140498,0.18029349,110990.0,110980.0,0.18021265]
[1760546140725,9.708e-05,110990.0,110980.0,0.18021265]
[1760546140991,0.18029349,110990.0,110980.0,0.18021265]
[1760546141219,0.18029349,110990.0,110970.0,0.18022889]
[1760546141433,0.18029349,110990.0,110980.0,0.19823391]
[1760546141658,0.18029349,110990.0,110980.0,0.18021265]
[1760546142411,0.18029349,110990.0,110970.0,0.26991901]
[1760546142675,0.18021265,110980.0,110970.0,0.26991901]
[1760546143058,0.91659064,110990.0,110970.0,0.26991901]
[1760546143425,0.18029349,110990.0,110980.0,0.18021265]
[1760546144263,9.708e-05,110990.0,110980.0,0.18021265]
[1760546144851,9.708e-05,110990.0,110980.0,0.26990277]
[1760546149258,9.708e-05,110990.0,110980.0,1.3823822]
[1760546149851,9.708e-05,110990.0,110980.0,0.67316955]
[1760546150018,9.708e-05,110990.0,110980.0,1.4094667]
[1760546150449,9.708e-05,110990.0,110980.0,1.4104667]
[1760546150662,9.708e-05,110990.0,110980.0,0.67316955]
[1760546150892,9.708e-05,110990.0,110980.0,1.4094667]
[1760546151129,9.708e-05,110990.0,110980.0,1.4104667]
[1760546151539,9.708e-05,110990.0,110980.0,1.14944247]
[1760546151751,1e-08,110990.0,110980.0,1.14944247]
[1760546151950,1e-08,110990.0,110980.0,1.15044247]
[1760546153226,1e-08,110990.0,110980.0,1.55044247]
[1760546153509,1e-08,110990.0,110980.0,6.55044247]
[1760546154924,1e-08,110990.0,110980.0,7.02571539]
[1760546155149,1e-08,110990.0,110980.0,6.54944247]
[1760546155363,1e-08,110990.0,110980.0,6.55144247]
[1760546155854,1e-08,110990.0,110980.0,6.55044247]
[1760546156149,1e-08,110990.0,110980.0,6.55244247]
[1760546158886,1e-08,110990.0,110980.0,1.55244247]
[1760546161697,1e-08,110990.0,110980.0,1.51626019]
[1760546161932,1e-08,110990.0,110980.0,1.55244247]
[1760546162616,1e-08,110990.0,110980.0,1.55044247]
[1760546162836,1e-08,110990.0,110980.0,6.55044247]
[1760546163053,1e-08,110990.0,110980.0,6.54944247]
[1760546163295,1e-08,110990.0,110980.0,6.55044247]
[1760546164509,1e-08,110990.0,110980.0,6.07516955]
[1760546164702,1e-08,110990.0,110980.0,6.55044247]
[1760546165173,1e-08,110990.0,110980.0,1.55044247]
[1760546166090,1e-08,110990.0,110980.0,6.55044247]
[1760546166319,1e-08,110990.0,110980.0,1.55044247]
[1760546166579,1e-08,110990.0,110980.0,1.66326019]
[1760546166799,1e-08,110990.0,110980.0,0.92326019]
[1760546167005,1e-08,110990.0,110980.0,0.81044247]
[1760546167220,1e-08,110990.0,110980.0,1.15044247]
[1760546168980,1e-08,110990.0,110980.0,6.15044247]
[1760546170551,1e-08,110990.0,110980.0,1.15044247]
[1760546170791,1e-08,110990.0,110980.0,1.55044247]
[1760546171232,1e-08,110990.0,110980.0,1.51426019]
[1760546171452,1e-08,110990.0,110980.0,1.55044247]
[1760546172576,1e-08,110990.0,110980.0,7.02571539]
[1760546172798,0.0717521,111040.0,111030.0,0.18013149]
[1760546173032,0.07190246,111040.0,111030.0,0.78127681]
[1760546173255,0.00015036,111040.0,111030.0,1.12127681]
[1760546173507,0.00015036,111040.0,111030.0,1.14834943]
[1760546173731,0.00015036,111040.0,111030.0,1.54834943]
[1760546174860,0.00015036,111040.0,111030.0,1.55749564]
[1760546175508,0.00015036,111040.0,111030.0,1.55849564]
[1760546176163,0.09698751,111080.0,111070.0,0.18006662]
[1760546176373,0.0806649,111080.0,111070.0,0.26975674]
[1760546176601,0.0089128,111080.0,111070.0,0.26975674]
[1760546178831,0.0089128,111080.0,111070.0,0.30593902]
[1760546180888,0.20574947,111080.0,111070.0,0.26975674]
[1760546181111,0.02569906,111080.0,111070.0,0.27075674]
[1760546181335,0.02569906,111080.0,111070.0,0.09069012]
[1760546181336,0.20575049,111080.0,111070.0,0.09069012]
[1760546181555,0.68102341,111080.0,111070.0,0.09069012]
[1760546181796,0.500973,111080.0,111070.0,0.27075674]
[1760546182020,0.02570008,111080.0,111070.0,0.27075674]
[1760546182456,0.02570008,111080.0,111070.0,0.09069012]
[1760546182668,0.02570008,111080.0,111070.0,0.001]
[1760546182669,0.68102341,111080.0,111070.0,0.001]
[1760546183312,0.18006662,111070.0,111060.0,0.18008153]
[1760546183528,0.02519908,111070.0,111060.0,0.18008153]
[1760546183966,0.68053862,111070.0,111050.0,0.18909812]
[1760546184180,0.68053862,111070.0,111060.0,0.18008283]
[1760546185487,0.68053862,111070.0,111050.0,0.27878824]
[1760546185711,0.18008283,111060.0,111050.0,0.27878824]
[1760546185922,0.68055483,111060.0,111050.0,0.27878824]
[1760546186144,0.68055483,111060.0,111040.0,0.18010974]
[1760546186355,0.68055483,111060.0,111040.0,0.26979986]
[1760546186564,0.18009905,111050.0,111040.0,0.26979986]
[1760546186767,0.20529813,111050.0,111040.0,0.26979986]
[1760546186978,0.20529813,111050.0,111040.0,0.26980539]
[1760546188059,0.18011527,111040.0,111030.0,0.18913806]
[1760546188293,0.68059238,111040.0,111030.0,0.08969012]
[1760546188517,0.18014247,111030.0,111010.0,0.18015759]
[1760546188726,0.50047711,111030.0,111020.0,0.18014772]
[1760546188981,0.6806086,111030.0,111020.0,0.18014772]
[1760546189372,0.6806086,111030.0,111020.0,0.00015036]
[1760546189590,0.6806086,111030.0,111020.0,0.18029808]
[1760546190278,0.50047711,111030.0,111020.0,0.18029808]
[1760546190493,0.50047711,111030.0,111020.0,0.18129808]
[1760546191240,0.49206531,111030.0,111020.0,0.18129808]
[1760546191451,0.6721968,111030.0,111020.0,0.00115036]
[1760546192207,0.6721968,111030.0,111020.0,0.18129808]
[1760546192415,0.65540441,111030.0,111020.0,0.18129808]
[1760546192937,0.47527292,111030.0,111020.0,0.18129808]
[1760546193066,0.65540441,111030.0,111020.0,0.18129808]
[1760546194291,0.47527292,111030.0,111020.0,0.18129808]
[1760546195303,0.65538914,111040.0,111020.0,0.18129808]
[1760546195556,0.67217647,111040.0,111030.0,0.18013149]
[1760546195765,0.65538819,111040.0,111030.0,0.18013149]
[1760546196387,0.65538819,111040.0,111020.0,0.18029808]
[1760546196598,0.68057068,111040.0,111020.0,0.18029808]
[1760546196802,0.65538819,111040.0,111020.0,0.18029808]
[1760546197003,0.67217625,111040.0,111020.0,0.18029808]
[1760546197218,0.65538819,111040.0,111030.0,0.18013149]
[1760546197637,0.18011527,111040.0,111030.0,0.18013149]
[1760546198055,0.18011527,111040.0,111020.0,0.18029808]
[1760546198267,0.65540441,111030.0,111020.0,0.18029808]
[1760546198889,0.65538819,111040.0,111020.0,0.18029808]
[1760546199104,0.189104,111050.0,111030.0,0.18013149]
[1760546199318,0.65538819,111040.0,111030.0,0.18013149]
[1760546199537,0.52010101,111050.0,111040.0,0.18011527]
[1760546199753,0.66435096,111060.0,111040.0,0.18011527]
[1760546199968,0.7088881,111060.0,111040.0,0.18011527]
[1760546200176,0.6895332,111060.0,111050.0,0.18009905]
[1760546200418,0.65535645,111060.0,111050.0,0.18009905]
[1760546200627,0.18908608,111060.0,111050.0,0.18009905]
[1760546200841,0.18009905,111050.0,111040.0,0.18011527]
[1760546201476,0.664359,111060.0,111040.0,0.18011527]
[1760546201677,0.65535645,111060.0,111040.0,0.18011527]
[1760546201889,0.18008283,111060.0,111050.0,0.18009905]
[1760546202103,0.65535575,111060.0,111040.0,0.27881115]
[1760546202525,0.18009905,111050.0,111040.0,0.27881115]
[1760546202733,0.65535575,111060.0,111040.0,0.27881115]
[1760546202966,0.18009905,111050.0,111040.0,0.27881115]
[1760546203168,0.66421593,111060.0,111040.0,0.27881115]
[1760546203376,0.66421593,111060.0,111050.0,0.18009905]
[1760546203590,0.18008283,111060.0,111050.0,0.18009905]
[1760546203804,0.65535575,111060.0,111050.0,0.18009905]
[1760546204067,0.18008283,111060.0,111050.0,0.18009905]
[1760546204496,0.18008283,111060.0,111040.0,0.27881115]
[1760546205157,0.18008283,111060.0,111050.0,0.18009905]
[1760546205392,0.18008283,111060.0,111040.0,0.27881115]
[1760546205612,0.18009905,111050.0,111040.0,0.27881115]
[1760546205825,0.18009905,111050.0,111040.0,0.26980539]
[1760546206060,0.65537197,111050.0,111030.0,0.00900657]
[1760546206295,0.47527292,111040.0,111030.0,0.18013094]
[1760546206522,0.18011527,111040.0,111030.0,0.18013094]
[1760546206726,0.66437692,111050.0,111040.0,0.18011527]
[1760546206934,1.01335559,111060.0,111050.0,0.18009905]
[1760546207152,0.83327276,111060.0,111050.0,0.18009905]
[1760546207385,0.53808267,111060.0,111040.0,0.18011527]
[1760546207607,0.52908697,111060.0,111050.0,0.18009905]
[1760546208036,0.52908697,111060.0,111040.0,0.18011527]
[1760546208267,0.18009905,111050.0,111040.0,0.18011527]
[1760546208983,1.00435989,111060.0,111040.0,0.18011527]
[1760546209272,0.18009905,111050.0,111040.0,0.18011527]
[1760546209962,0.18008283,111060.0,111050.0,0.18009905]
[1760546210866,0.18008283,111060.0,111040.0,0.18912103]
[1760546211123,0.18009905,111050.0,111030.0,0.18913751]
[1760546211340,0.18011527,111040.0,111030.0,0.08969012]
[1760546211549,0.91527595,111050.0,111030.0,0.26982161]
[1760546211726,0.18009905,111050.0,111040.0,0.18011527]
[1760546212610,0.92426387,111060.0,111040.0,0.18011527]
[1760546212819,0.52908697,111060.0,111040.0,0.18011527]
[1760546213021,0.99588398,111070.0,111050.0,0.18009905]
[1760546213239,1.16025809,111070.0,111050.0,0.18009905]
[1760546213451,0.18008283,111060.0,111040.0,0.18011527]
[1760546213764,0.18009905,111050.0,111040.0,0.18011527]
[1760546213988,0.18011527,111040.0,111030.0,0.18013149]
[1760546214225,0.18011527,111040.0,111020.0,0.18929264]
[1760546214459,0.9242809,111050.0,111030.0,0.18013149]
[1760546214686,0.94113384,111050.0,111030.0,0.18013149]
[1760546214912,0.18011527,111040.0,111030.0,0.18013149]
[1760546216695,0.91529217,111040.0,111030.0,0.18013149]
[1760546216911,0.18011527,111040.0,111030.0,0.18013149]
[1760546217115,0.18011527,111040.0,111020.0,0.00015036]
[1760546217116,0.18013149,111030.0,111020.0,0.00015036]
[1760546217322,0.18013149,111030.0,111020.0,0.18029808]
[1760546217536,0.91529217,111040.0,111020.0,0.18029808]
[1760546217735,0.93215261,111040.0,111030.0,0.18013149]
[1760546217941,0.91529217,111040.0,111030.0,0.18013149]
[1760546218163,0.93215248,111040.0,111030.0,0.18013149]
[1760546218363,0.93215248,111040.0,111020.0,0.18029808]
[1760546219977,0.93215337,111040.0,111020.0,0.18029808]
[1760546220197,0.93215337,111040.0,111030.0,0.18013149]
[1760546220344,0.93215337,111040.0,111020.0,0.18029808]
[1760546220741,0.93215337,111040.0,111030.0,0.18013149]
[1760546221140,0.18011527,111040.0,111030.0,0.18013149]
[1760546221338,0.9242809,111050.0,111040.0,0.18011527]
[1760546221544,0.94957339,111050.0,111030.0,0.18013149]
[1760546221744,0.18011527,111040.0,111030.0,0.18013149]
[1760546221979,0.18011527,111040.0,111020.0,0.18930546]
[1760546222316,0.18011527,111040.0,111030.0,0.18013149]
[1760546222431,0.18011527,111040.0,111020.0,0.27899558]
[1760546222634,0.18011527,111040.0,111030.0,0.18013149]
[1760546224487,0.529104,111050.0,111040.0,0.18011527]
[1760546224877,0.18011527,111040.0,111030.0,0.18013149]
[1760546226570,0.9242809,111050.0,111040.0,0.18011527]
[1760546227154,0.9242809,111050.0,111030.0,0.18013149]
[1760546227521,0.18011527,111040.0,111030.0,0.18013149]
[1760546228348,0.18011527,111040.0,111020.0,0.27899558]
[1760546228556,0.18011527,111040.0,111030.0,0.18013149]
[1760546229380,0.18011527,111040.0,111020.0,0.27899558]
[1760546229604,0.18011527,111040.0,111030.0,0.18013149]
[1760546230907,0.189104,111050.0,111040.0,0.18011527]
[1760546231538,0.18011527,111040.0,111030.0,0.18013149]
[1760546231963,0.18011527,111040.0,111020.0,0.27899558]
[1760546232376,0.18013149,111030.0,111020.0,0.27899558]
[1760546232587,0.18013149,111030.0,111020.0,0.2699882]
[1760546232800,0.18013149,111030.0,111020.0,0.18029808]
[1760546233013,0.91529217,111040.0,111020.0,0.18029808]
[1760546233289,0.18011527,111040.0,111030.0,0.18013149]
[1760546233496,0.18013149,111030.0,111020.0,0.18029808]
[1760546233677,0.91529217,111040.0,111020.0,0.18029808]
[1760546233911,0.94060272,111040.0,111020.0,0.18029808]
[1760546234125,0.94060272,111040.0,111030.0,0.18013149]
[1760546234336,0.93216587,111040.0,111030.0,0.18013149]
[1760546234569,0.18011527,111040.0,111030.0,0.18013149]
[1760546234778,0.18011527,111040.0,111020.0,0.18029808]
[1760546234988,0.18013149,111030.0,111020.0,0.18029808]
[1760546237317,0.18013149,111030.0,111020.0,0.00015036]
[1760546237318,0.91530839,111030.0,111020.0,0.00015036]
[1760546237531,0.95218761,111030.0,111020.0,0.00015036]
[1760546237974,0.93218761,111030.0,111020.0,0.18029808]
[1760546238186,0.18013149,111030.0,111020.0,0.18029808]
[1760546239484,0.18011527,111040.0,111020.0,0.18029808]
[1760546239711,0.18013149,111030.0,111020.0,0.18029808]
[1760546240127,0.91530839,111030.0,111020.0,0.00015036]
[1760546241006,0.18013149,111030.0,111020.0,0.00015036]
[1760546241213,0.91530839,111030.0,111020.0,0.18029808]
[1760546241424,0.91530839,111030.0,111020.0,0.00015036]
[1760546242703,0.18013149,111030.0,111020.0,0.00015036]
[1760546242930,0.18920748,111030.0,111020.0,0.18029808]
[1760546243338,0.18920748,111030.0,111020.0,0.00015036]
[1760546243982,0.18013149,111030.0,111020.0,0.18029808]
[1760546244458,0.18013149,111030.0,111020.0,0.00015036]
[1760546244895,0.91530839,111030.0,111020.0,0.00015036]
[1760546245111,0.18013149,111030.0,111020.0,0.18029808]
[1760546245342,0.18013149,111030.0,111020.0,0.00015036]
[1760546245572,0.91529217,111040.0,111020.0,0.18029808]
[1760546245806,0.18011527,111040.0,111020.0,0.18029808]
[1760546246262,0.52011527,111040.0,111030.0,0.18013149]
[1760546246506,0.52011527,111040.0,111020.0,0.18029808]
[1760546246726,0.52901144,111040.0,111030.0,0.18013149]
[1760546246913,0.18901144,111040.0,111030.0,0.18013149]
[1760546247180,0.00900495,111050.0,111040.0,0.18011527]
[1760546247412,0.99600028,111070.0,111050.0,0.18009905]
[1760546247630,0.18008283,111060.0,111050.0,0.18009905]
[1760546247848,0.93348773,111070.0,111050.0,0.18009905]
[1760546248061,0.18008283,111060.0,111050.0,0.18009905]
[1760546248290,0.18008283,111060.0,111040.0,0.27881115]
[1760546248512,0.18008283,111060.0,111020.0,0.18930546]
[1760546248513,0.9242809,111050.0,111020.0,0.18930546]
[1760546248737,0.9242809,111050.0,111040.0,0.18011527]
[1760546248956,0.18009905,111050.0,111040.0,0.18011527]
[1760546250749,0.93348773,111070.0,111050.0,0.18009905]
[1760546250967,0.18008283,111060.0,111050.0,0.18009905]
[1760546251836,0.18009905,111050.0,111040.0,0.18011527]
[1760546252032,0.18009905,111050.0,111040.0,0.26980539]
[1760546252255,0.91525973,111060.0,111040.0,0.26980539]
[1760546252685,0.92525973,111060.0,111040.0,0.26980539]
[1760546253155,0.18009905,111050.0,111040.0,0.26980539]
[1760546253396,0.91525973,111060.0,111040.0,0.26980539]
[1760546253934,0.18009905,111050.0,111040.0,0.26980539]
[1760546254179,0.18009905,111050.0,111040.0,0.08969012]
[1760546254392,0.18009905,111050.0,111040.0,0.26980539]
[1760546255035,0.18011527,111040.0,111030.0,0.18013114]
[1760546255243,0.18011527,111040.0,111030.0,0.26982161]
[1760546255451,0.18009905,111050.0,111040.0,0.18011527]
[1760546255662,0.18908697,111060.0,111040.0,0.18011527]
[1760546255846,0.18009905,111050.0,111040.0,0.18011527]
[1760546256638,0.18908697,111060.0,111040.0,0.18011527]
[1760546256870,0.92426387,111060.0,111040.0,0.18011527]
[1760546257046,0.18009905,111050.0,111040.0,0.18011527]
[1760546257266,0.92426387,111060.0,111040.0,0.18011527]
[1760546257494,0.18008283,111060.0,111050.0,0.18009905]
[1760546258325,0.93348773,111070.0,111050.0,0.18009905]
[1760546258535,0.18008283,111060.0,111050.0,0.18009905]
[1760546260811,0.93348773,111070.0,111050.0,0.18009905]
[1760546261010,0.18008283,111060.0,111050.0,0.18009905]
[1760546261206,0.91525973,111060.0,111050.0,0.18009905]
[1760546261628,0.7351769,111060.0,111050.0,0.18009905]
[1760546261833,0.53831332,111070.0,111050.0,0.18009905]
[1760546262036,0.18008283,111060.0,111050.0,0.18009905]
[1760546262238,1.27349022,111070.0,111060.0,0.18008283]
[1760546262571,1.27349022,111070.0,111050.0,0.18009905]
[1760546262572,1.39349022,111070.0,111050.0,0.18009905]
[1760546262720,0.18008283,111060.0,111050.0,0.18009905]
[1760546263323,0.18058383,111060.0,111050.0,0.18009905]
[1760546264510,0.18009905,111050.0,111040.0,0.18010503]
[1760546264724,0.91576073,111060.0,111050.0,0.18009905]
[1760546265181,0.7356779,111060.0,111050.0,0.18009905]
[1760546265415,0.000501,111060.0,111050.0,0.18009905]
[1760546265654,0.18058383,111060.0,111050.0,0.18009905]
[1760546266085,0.000501,111060.0,111050.0,0.18009905]
[1760546266235,0.18058383,111060.0,111050.0,0.18009905]
[1760546266761,0.000501,111060.0,111050.0,0.18009905]
[1760546267380,0.000501,111060.0,111050.0,0.26978917]
[1760546267534,0.000501,111060.0,111050.0,0.27879231]
[1760546269311,0.000501,111060.0,111050.0,0.31497459]
[1760546269533,0.000501,111060.0,111050.0,1.05215149]
[1760546269766,0.000501,111060.0,111050.0,1.16583149]
[1760546270202,0.000501,111060.0,111050.0,0.42965459]
[1760546270667,0.000501,111060.0,111050.0,0.43065459]
[1760546270911,0.000501,111060.0,111050.0,0.31597459]
[1760546271107,0.000501,111060.0,111050.0,0.43065459]
[1760546271355,0.000501,111060.0,111050.0,0.65697459]
[1760546271561,0.000501,111060.0,111050.0,1.13172207]
[1760546272106,0.000501,111060.0,111050.0,1.24536207]
[1760546272351,0.000501,111060.0,111050.0,0.65697459]
[1760546272552,0.000501,111060.0,111050.0,0.77061459]
[1760546272773,0.000501,111060.0,111050.0,0.65697459]
[1760546273398,0.000501,111060.0,111050.0,1.13072207]
[1760546273605,0.000501,111060.0,111050.0,1.13172207]
[1760546273814,0.000501,111060.0,111050.0,1.24436207]
[1760546274218,0.000501,111060.0,111050.0,1.24536207]
[1760546274619,0.000501,111060.0,111050.0,1.24436207]
[1760546275140,0.000501,111060.0,111050.0,1.24536207]
[1760546275373,0.000501,111060.0,111050.0,1.18737913]
[1760546275831,0.000501,111060.0,111050.0,1.21544843]
[1760546277139,0.000501,111060.0,111050.0,1.10180843]
[1760546277783,0.000501,111060.0,111050.0,1.21540843]
[1760546277983,0.000501,111060.0,111050.0,1.91957297]
[1760546278194,0.000501,111060.0,111050.0,1.61540843]
[1760546278616,0.000501,111060.0,111050.0,2.03317297]
[1760546278891,0.000501,111060.0,111050.0,2.03321297]
[1760546279130,0.000501,111060.0,111050.0,1.50180843]
[1760546279339,0.000501,111060.0,111050.0,1.61544843]
[1760546280055,0.000501,111060.0,111050.0,2.03321297]
[1760546280471,1e-08,111060.0,111050.0,2.03321297]
[1760546280675,1e-08,111060.0,111050.0,1.91957297]
[1760546281206,1e-08,111060.0,111050.0,2.03321297]
[1760546281664,1e-08,111060.0,111050.0,7.35850469]
[1760546281878,1e-08,111060.0,111050.0,7.47214469]
[1760546282089,0.0721521,111090.0,111080.0,0.18005041]
[1760546282090,1e-08,111090.0,111080.0,0.18005041]
[1760546282302,0.00015025,111090.0,111080.0,1.21894961]
[1760546282520,0.00015024,111090.0,111080.0,1.10526961]
[1760546282743,1e-08,111090.0,111080.0,2.01289643]
[1760546282962,1e-08,111090.0,111080.0,7.29921643]
[1760546283180,1e-08,111090.0,111080.0,6.04592281]
[1760546283399,1e-08,111090.0,111080.0,6.90850793]
[1760546283607,1e-08,111090.0,111080.0,6.5473284]
[1760546283838,1e-08,111090.0,111080.0,6.6609684]
[1760546284302,1e-08,111090.0,111080.0,6.07397885]
[1760546284524,1e-08,111090.0,111080.0,1.6619684]
[1760546284741,1e-08,111090.0,111080.0,1.18961885]
[1760546284959,1e-08,111090.0,111080.0,1.07597885]
[1760546285188,1e-08,111090.0,111080.0,0.73597885]
[1760546285405,1e-08,111090.0,111080.0,0.27274053]
[1760546285626,1e-08,111090.0,111080.0,0.09269012]
[1760546285838,1e-08,111090.0,111080.0,0.27274053]
[1760546286067,1e-08,111090.0,111080.0,0.27074053]
[1760546286313,1e-08,111090.0,111080.0,0.26974053]
[1760546286534,1e-08,111090.0,111080.0,0.27074053]
[1760546286985,1e-08,111090.0,111080.0,0.26974053]
[1760546288089,1e-08,111090.0,111080.0,1.08409008]
[1760546288308,1e-08,111090.0,111080.0,1.12027236]
[1760546289003,1e-08,111090.0,111080.0,1.70930191]
[1760546289424,1e-08,111090.0,111080.0,6.99562191]
[1760546289642,1e-08,111090.0,111080.0,6.99662191]
[1760546290072,1e-08,111090.0,111080.0,7.10930191]
[1760546290278,1e-08,111090.0,111080.0,6.99562191]
[1760546290487,1e-08,111090.0,111080.0,6.99762191]
[1760546290700,1e-08,111090.0,111080.0,7.11030191]
[1760546291114,1e-08,111090.0,111080.0,6.99862191]
[1760546291323,1e-08,111090.0,111080.0,7.11226191]
[1760546291563,1e-08,111090.0,111080.0,6.99862191]
[1760546291791,1e-08,111090.0,111080.0,7.11226191]
[1760546292262,1e-08,111090.0,111080.0,6.5513272]
[1760546292496,1e-08,111090.0,111080.0,1.5513272]
[1760546292932,1e-08,111090.0,111080.0,2.13931675]
[1760546293136,1e-08,111090.0,111080.0,2.02567675]
[1760546293559,1e-08,111090.0,111080.0,2.13931675]
[1760546293782,1e-08,111090.0,111080.0,1.6649672]
[1760546294194,1e-08,111090.0,111080.0,1.5513272]
[1760546294608,1e-08,111090.0,111080.0,1.6649672]
[1760546294818,1e-08,111090.0,111080.0,1.5513272]
[1760546295231,1e-08,111090.0,111080.0,1.17514492]
[1760546295443,1e-08,111090.0,111080.0,0.70079537]
[1760546295868,0.00839631,111090.0,111080.0,0.27374053]
[1760546296077,0.00839631,111090.0,111080.0,0.30792281]
[1760546296287,0.00839631,111090.0,111080.0,0.30892281]
[1760546296505,0.00839631,111090.0,111080.0,0.27274053]
[1760546296689,0.00839631,111090.0,111080.0,0.27074053]
[1760546296937,0.00839815,111090.0,111080.0,0.27074053]
[1760546297147,0.00839815,111090.0,111080.0,0.27174053]
[1760546300436,1e-08,111090.0,111080.0,0.27174053]
[1760546303752,0.70802116,111090.0,111080.0,0.18005041]
[1760546304027,0.18005041,111080.0,111070.0,0.18006529]
[1760546304203,0.18005041,111080.0,111070.0,0.26975541]
[1760546304560,0.68280054,111090.0,111070.0,0.26975541]
[1760546304776,0.70802712,111090.0,111070.0,0.18006529]
[1760546305200,0.69898192,111090.0,111070.0,0.18006529]
[1760546305410,0.18844307,111090.0,111080.0,0.18005041]
[1760546306084,0.66279262,111090.0,111070.0,0.18006529]
[1760546306554,0.18005041,111080.0,111070.0,0.18006529]
[1760546306797,0.67375898,111090.0,111080.0,0.18005041]
[1760546307021,0.66279284,111090.0,111080.0,0.18005041]
[1760546307464,0.00840909,111090.0,111080.0,0.18005041]
[1760546307686,1e-08,111090.0,111080.0,0.18005041]
[1760546307895,0.18003421,111090.0,111080.0,0.18005041]
[1760546308116,0.18844289,111090.0,111070.0,0.18006568]
[1760546308547,0.18005041,111080.0,111060.0,0.18905898]
[1760546308760,0.68275957,111090.0,111070.0,0.18006662]
[1760546308974,0.18005041,111080.0,111060.0,0.2787491]
[1760546309230,0.65439996,111080.0,111070.0,0.18006662]
[1760546309441,0.18005041,111080.0,111070.0,0.18006662]
[1760546309912,0.18006662,111070.0,111040.0,0.26086289]
[1760546310127,0.18008306,111060.0,111040.0,0.27880091]
[1760546310342,0.65443238,111060.0,111040.0,0.27880091]
[1760546310782,0.65443238,111060.0,111050.0,0.18009905]
[1760546311196,0.66367647,111060.0,111050.0,0.18009905]
[1760546311412,0.48359364,111060.0,111050.0,0.18009905]
[1760546311635,0.66367647,111060.0,111050.0,0.18009905]
[1760546312261,0.18006662,111070.0,111050.0,0.18009905]
[1760546312468,0.65441617,111070.0,111050.0,0.18009905]
[1760546312691,0.18006662,111070.0,111050.0,0.18009905]
[1760546312914,0.65441617,111070.0,111050.0,0.18009905]
[1760546313163,0.18008283,111060.0,111040.0,0.27880091]
[1760546314117,0.18008283,111060.0,111050.0,0.18009905]
[1760546314964,0.18008283,111060.0,111040.0,0.27880091]
[1760546315179,0.65443238,111060.0,111040.0,0.27880091]
[1760546315387,0.18008283,111060.0,111040.0,0.27880091]
[1760546315806,0.18916249,111060.0,111050.0,0.18009905]
[1760546316499,0.66351204,111060.0,111050.0,0.18009905]
[1760546317423,0.00907966,111060.0,111050.0,0.18009905]
[1760546317629,0.18916249,111060.0,111050.0,0.18009905]
[1760546317795,0.18008283,111060.0,111050.0,0.18009905]
[1760546318841,0.18008283,111060.0,111040.0,0.27880091]
[1760546319004,0.18008283,111060.0,111040.0,0.26980045]
[1760546319242,0.18008283,111060.0,111050.0,0.18009905]
[1760546319439,0.66337202,111060.0,111050.0,0.18009905]
[1760546319731,0.6634195,111070.0,111050.0,0.18009905]
[1760546319937,0.52006662,111070.0,111060.0,0.18008283]
[1760546320085,0.34,111070.0,111060.0,0.18008283]
[1760546320283,0.52006662,111070.0,111060.0,0.18008283]
[1760546321437,0.18008283,111060.0,111050.0,0.26978917]
[1760546323173,1.00349314,111070.0,111060.0,0.18008283]
[1760546323579,0.52914359,111070.0,111060.0,0.18008283]
[1760546323788,0.18008283,111060.0,111050.0,0.26978917]
[1760546324205,0.18008283,111060.0,111050.0,0.08969012]
[1760546324408,0.18008283,111060.0,111050.0,0.26978917]
[1760546325016,0.99441617,111070.0,111050.0,0.26978917]
[1760546325231,0.34,111070.0,111060.0,0.18008283]
[1760546325443,0.18006662,111070.0,111060.0,0.18008283]
[1760546325854,0.99439996,111080.0,111070.0,0.18006662]
[1760546326962,0.99439996,111080.0,111060.0,0.26977295]